fUST/lending_fUST_20250628
["ID","MTS","AMOUNT","RATE_DAILY","PERIOD"]
[368195367,1751056239049,-460.0,0.00019178,2]
[368195369,1751056239059,-460.0,0.00019178,2]
[368195370,1751056239068,-460.0,0.00019178,2]
[368195373,1751056239078,-460.0,0.00019178,2]
[368195375,1751056239087,-951.93,0.00019178,2]
[368195377,1751056239096,-521.29,0.00019178,2]
[368195379,1751056239105,-495.61,0.00019178,2]
[368195381,1751056239115,-222.23631958,0.00019178,2]
[368195383,1751056239124,-460.0,0.00019178,2]
[368195385,1751056239133,-460.0,0.00019178,2]
[368195387,1751056239142,-460.0,0.00019178,2]
[368195389,1751056239152,-460.0,0.00019178,2]
[368195391,1751056239162,-460.0,0.00019178,2]
[368195393,1751056239171,-460.0,0.00019178,2]
[368195395,1751056239181,-460.0,0.00019178,2]
[368195397,1751056239190,-507.09,0.00019178,2]
[368195399,1751056239199,-460.0,0.00019178,2]
[368195401,1751056239208,-460.0,0.00019178,2]
[368195403,1751056239217,-460.0,0.00019178,2]
[368195405,1751056239226,-460.0,0.00019178,2]
[368195407,1751056239235,-460.0,0.00019178,2]
[368195409,1751056239244,-460.0,0.00019178,2]
[368195411,1751056239253,-460.0,0.00019178,2]
[368195413,1751056239262,-460.0,0.00019178,2]
[368195415,1751056239271,-460.0,0.00019178,2]
[368195417,1751056239280,-460.0,0.00019178,2]
[368195419,1751056239289,-460.0,0.00019178,2]
[368195421,1751056239302,-460.0,0.00019178,2]
[368195423,1751056239311,-460.0,0.00019178,2]
[368195425,1751056239320,-460.0,0.00019178,2]
[368195427,1751056239329,-460.0,0.00019178,2]
[368195428,1751056239339,-460.0,0.00019178,2]
[368195430,1751056239348,-460.0,0.00019178,2]
[368195432,1751056239357,-460.0,0.00019178,2]
[368195434,1751056239367,-460.0,0.00019178,2]
[368195436,1751056239376,-460.0,0.00019178,2]
[368195439,1751056239386,-460.0,0.00019178,2]
[368195440,1751056239395,-460.0,0.00019178,2]
[368195442,1751056239404,-460.0,0.00019178,2]
[368195445,1751056239414,-460.0,0.00019178,2]
[368195447,1751056239424,-460.0,0.00019178,2]
[368195448,1751056239433,-350.56646888,0.00019178,2]
[368195450,1751056239442,-460.0,0.00019178,2]
[368195453,1751056239451,-460.0,0.00019178,2]
[368195454,1751056239460,-460.0,0.00019178,2]
[368195456,1751056239469,-460.0,0.00019178,2]
[368195458,1751056239478,-460.0,0.00019178,2]
[368195460,1751056239487,-829.18,0.00019178,2]
[368195462,1751056239496,-460.0,0.00019178,2]
[368195463,1751056239505,-460.0,0.00019178,2]
[368195464,1751056239514,-460.0,0.00019178,2]
[368195465,1751056239523,-460.0,0.00019178,2]
[368195466,1751056239532,-460.0,0.00019178,2]
[368195467,1751056239541,-460.0,0.00019178,2]
[368195468,1751056239550,-460.0,0.00019178,2]
[368195469,1751056239559,-425.18074102,0.00019178,2]
[368195470,1751056239567,-460.0,0.00019178,2]
[368195471,1751056239576,-460.0,0.00019178,2]
[368195472,1751056239585,-460.0,0.00019178,2]
[368195489,1751056239758,-460.0,0.00019178,2]
[368195492,1751056239768,-345.11785581,0.00019178,2]
[368195494,1751056239778,-460.0,0.00019178,2]
[368195496,1751056239787,-497.88786067,0.00019178,2]
[368195497,1751056239799,-460.0,0.00019178,2]
[368195500,1751056239808,-460.0,0.00019178,2]
[368195502,1751056239817,-460.0,0.00019178,2]
[368195503,1751056239827,-460.0,0.00019178,2]
[368195506,1751056239837,-460.0,0.00019178,2]
[368195508,1751056239846,-460.0,0.00019178,2]
[368195510,1751056239855,-460.0,0.00019178,2]
[368195511,1751056239864,-460.0,0.00019178,2]
[368195513,1751056239874,-460.0,0.00019178,2]
[368195515,1751056239886,-476.17,0.00019178,2]
[368195517,1751056239896,-460.0,0.00019178,2]
[368195520,1751056239906,-582.16,0.00019178,2]
[368195521,1751056239916,-460.0,0.00019178,2]
[368195524,1751056239926,-500.0,0.00019178,2]
[368195525,1751056239936,-460.0,0.00019178,2]
[368195528,1751056239946,-460.0,0.00019178,2]
[368195529,1751056239956,-465.84,0.00019178,2]
[368195531,1751056239966,-460.0,0.00019178,2]
[368195533,1751056239976,-460.0,0.00019178,2]
[368195535,1751056239985,-460.0,0.00019178,2]
[368195537,1751056239995,-460.0,0.00019178,2]
[368195539,1751056240005,-460.0,0.00019178,2]
[368195541,1751056240014,-460.0,0.00019178,2]
[368195543,1751056240023,-460.0,0.00019178,2]
[368195545,1751056240032,-460.0,0.00019178,2]
[368195547,1751056240041,-460.0,0.00019178,2]
[368195549,1751056240050,-460.0,0.00019178,2]
[368195551,1751056240059,-460.0,0.00019178,2]
[368195553,1751056240068,-460.0,0.00019178,2]
[368195555,1751056240078,-460.0,0.00019178,2]
[368195557,1751056240087,-464.9,0.00019178,2]
[368195559,1751056240096,-654.5,0.00019178,2]
[368195561,1751056240105,-460.0,0.00019178,2]
[368195563,1751056240115,-460.0,0.00019178,2]
[368195565,1751056240124,-460.0,0.00019178,2]
[368195567,1751056240134,-460.0,0.00019178,2]
[368195569,1751056240144,-460.0,0.00019178,2]
[368195572,1751056240154,-460.0,0.00019178,2]
[368195575,1751056240164,-460.0,0.00019178,2]
[368195578,1751056240174,-513.46,0.00019178,2]
[368195580,1751056240183,-460.0,0.00019178,2]
[368195583,1751056240192,-460.0,0.00019178,2]
[368195586,1751056240201,-460.0,0.00019178,2]
[368195588,1751056240210,-572.72,0.00019178,2]
[368195590,1751056240219,-460.0,0.00019178,2]
[368195592,1751056240228,-460.0,0.00019178,2]
[368195594,1751056240237,-618.44,0.00019178,2]
[368195596,1751056240246,-460.0,0.00019178,2]
[368195598,1751056240256,-460.0,0.00019178,2]
[368195600,1751056240266,-460.0,0.00019178,2]
[368195602,1751056240276,-847.69,0.00019178,2]
[368195604,1751056240285,-504.11538217,0.00019178,2]
[368195606,1751056240297,-696.94,0.00019178,2]
[368195608,1751056240307,-460.0,0.00019178,2]
[368195610,1751056240316,-460.0,0.00019178,2]
[368195612,1751056240325,-585.5,0.00019178,2]
[368195614,1751056240334,-480.02,0.00019178,2]
[368195616,1751056240343,-460.0,0.00019178,2]
[368195618,1751056240352,-548.4,0.00019178,2]
[368195620,1751056240362,-460.0,0.00019178,2]
[368195622,1751056240371,-770.99,0.00019178,2]
[368195624,1751056240379,-460.0,0.00019178,2]
[368195626,1751056240389,-664.76,0.00019178,2]
[368195628,1751056240398,-1819.87,0.00019178,2]
[368195630,1751056240407,-3421.7,0.00019178,2]
[368195633,1751056240417,-460.0,0.00019178,2]
[368195635,1751056240427,-460.0,0.00019178,2]
[368195637,1751056240437,-692.12,0.00019178,2]
[368195639,1751056240447,-608.13,0.00019178,2]
[368195641,1751056240457,-460.0,0.00019178,2]
[368195643,1751056240467,-2991.02,0.00019178,2]
[368195645,1751056240476,-460.0,0.00019178,2]
[368195647,1751056240485,-1134.48,0.00019178,2]
[368195649,1751056240494,-460.0,0.00019178,2]
[368195651,1751056240503,-460.0,0.00019178,2]
[368195653,1751056240512,-460.0,0.00019178,2]
[368195655,1751056240521,-738.08,0.00019178,2]
[368195657,1751056240530,-460.0,0.00019178,2]
[368195659,1751056240539,-681.69,0.00019178,2]
[368195661,1751056240548,-460.0,0.00019178,2]
[368195663,1751056240558,-461.50220711,0.00019178,2]
[368195665,1751056240567,-604.79,0.00019178,2]
[368195667,1751056240576,-463.6,0.00019178,2]
[368195669,1751056240585,-460.0,0.00019178,2]
[368195671,1751056240594,-460.0,0.00019178,2]
[368195673,1751056240603,-460.0,0.00019178,2]
[368195675,1751056240612,-460.0,0.00019178,2]
[368195677,1751056240621,-477.92,0.00019178,2]
[368195679,1751056240630,-223.99993759,0.00019178,2]
[368195681,1751056240641,-460.0,0.00019178,2]
[368195682,1751056240651,-460.0,0.00019178,2]
[368195685,1751056240660,-460.0,0.00019178,2]
[368195687,1751056240670,-3339.49,0.00019178,2]
[368195689,1751056240679,-460.0,0.00019178,2]
[368195690,1751056240687,-460.0,0.00019178,2]
[368195693,1751056240697,-460.0,0.00019178,2]
[368195694,1751056240706,-462.49394205,0.00019178,2]
[368195697,1751056240716,-1886.24,0.00019178,2]
[368195699,1751056240726,-460.0,0.00019178,2]
[368195701,1751056240735,-1021.99,0.00019178,2]
[368195703,1751056240750,-460.0,0.00019178,2]
[368195705,1751056240759,-460.0,0.00019178,2]
[368195707,1751056240768,-460.0,0.00019178,2]
[368195709,1751056240777,-460.0,0.00019178,2]
[368195711,1751056240786,-543.97,0.00019178,2]
[368195713,1751056240795,-3167.18,0.00019178,2]
[368195715,1751056240805,-460.0,0.00019178,2]
[368195717,1751056240815,-421.16935955,0.00019178,2]
[368195719,1751056240824,-460.0,0.00019178,2]
[368195721,1751056240833,-460.0,0.00019178,2]
[368195723,1751056240842,-460.0,0.00019178,2]
[368195725,1751056240851,-460.0,0.00019178,2]
[368195727,1751056240860,-460.0,0.00019178,2]
[368195729,1751056240869,-473.57,0.00019178,2]
[368195731,1751056240883,-3702.4,0.00019178,2]
[368195733,1751056240892,-460.0,0.00019178,2]
[368195735,1751056240902,-460.0,0.00019178,2]
[368195737,1751056240911,-460.0,0.00019178,2]
[368195739,1751056240921,-460.0,0.00019178,2]
[368195741,1751056240930,-718.91,0.00019178,2]
[368195743,1751056240940,-460.0,0.00019178,2]
[368195745,1751056240950,-460.0,0.00019178,2]
[368195747,1751056240959,-5599.22,0.00019178,2]
[368195749,1751056240969,-460.0,0.00019178,2]
[368195751,1751056240979,-460.0,0.00019178,2]
[368195753,1751056240988,-460.0,0.00019178,2]
[368195755,1751056240997,-2001.37,0.00019178,2]
[368195757,1751056241007,-460.0,0.00019178,2]
[368195759,1751056241016,-460.0,0.00019178,2]
[368195761,1751056241025,-625.25,0.00019178,2]
[368195763,1751056241035,-460.0,0.00019178,2]
[368195765,1751056241045,-460.0,0.00019178,2]
[368195767,1751056241054,-577.2,0.00019178,2]
[368195769,1751056241064,-460.0,0.00019178,2]
[368195771,1751056241073,-460.0,0.00019178,2]
[368195773,1751056241083,-501.99106455,0.00019178,2]
[368195775,1751056241092,-1291.28,0.00019178,2]
[368195777,1751056241101,-460.0,0.00019178,2]
[368195779,1751056241111,-460.0,0.00019178,2]
[368195781,1751056241119,-460.0,0.00019178,2]
[368195783,1751056241129,-231.80782862,0.00019178,2]
[368195785,1751056241138,-683.72,0.00019178,2]
[368195787,1751056241147,-1356.42,0.00019178,2]
[368195789,1751056241156,-460.0,0.00019178,2]
[368195791,1751056241167,-460.0,0.00019178,2]
[368195793,1751056241176,-460.0,0.00019178,2]
[368195795,1751056241184,-460.0,0.00019178,2]
[368195797,1751056241193,-1574.84,0.00019178,2]
[368195799,1751056241202,-4877.3,0.00019178,2]
[368195801,1751056241211,-1167.56,0.00019178,2]
[368195803,1751056241220,-460.0,0.00019178,2]
[368195805,1751056241230,-460.0,0.00019178,2]
[368195807,1751056241239,-460.0,0.00019178,2]
[368195809,1751056241248,-2104.86,0.00019178,2]
[368195811,1751056241257,-462.45224602,0.00019178,2]
[368195813,1751056241266,-824.77,0.00019178,2]
[368195815,1751056241275,-460.0,0.00019178,2]
[368195817,1751056241284,-460.0,0.00019178,2]
[368195819,1751056241300,-663.68,0.00019178,2]
[368195821,1751056241309,-295.42397296,0.00019178,2]
[368195823,1751056241318,-460.0,0.00019178,2]
[368195825,1751056241327,-460.0,0.00019178,2]
[368195827,1751056241337,-733.53,0.00019178,2]
[368195829,1751056241346,-460.0,0.00019178,2]
[368195831,1751056241355,-460.0,0.00019178,2]
[368195833,1751056241366,-543.23,0.00019178,2]
[368195835,1751056241376,-1619.82,0.00019178,2]
[368195837,1751056241385,-460.0,0.00019178,2]
[368195839,1751056241393,-460.0,0.00019178,2]
[368195841,1751056241403,-460.0,0.00019178,2]
[368195843,1751056241412,-766.76,0.00019178,2]
[368195845,1751056241421,-658.12,0.00019178,2]
[368195847,1751056241430,-460.0,0.00019178,2]
[368195849,1751056241439,-460.0,0.00019178,2]
[368195851,1751056241448,-460.0,0.00019178,2]
[368195853,1751056241458,-460.0,0.00019178,2]
[368195855,1751056241467,-460.0,0.00019178,2]
[368195857,1751056241477,-3888.25,0.00019178,2]
[368195860,1751056241486,-460.0,0.00019178,2]
[368195862,1751056241495,-460.0,0.00019178,2]
[368195864,1751056241504,-754.93,0.00019178,2]
[368195866,1751056241513,-460.0,0.00019178,2]
[368195868,1751056241523,-460.0,0.00019178,2]
[368195870,1751056241532,-460.0,0.00019178,2]
[368195872,1751056241541,-460.0,0.00019178,2]
[368195874,1751056241550,-460.0,0.00019178,2]
[368195876,1751056241559,-546.29,0.00019178,2]
[368195877,1751056241568,-566.66,0.00019178,2]
[368195880,1751056241578,-460.0,0.00019178,2]
[368195882,1751056241587,-460.0,0.00019178,2]
[368195884,1751056241596,-460.0,0.00019178,2]
[368195885,1751056241605,-460.0,0.00019178,2]
[368195887,1751056241614,-460.0,0.00019178,2]
[368195889,1751056241623,-460.0,0.00019178,2]
[368195892,1751056241633,-460.0,0.00019178,2]
[368195894,1751056241642,-777.59,0.00019178,2]
[368195896,1751056241651,-161.74308903,0.00019178,2]
[368195898,1751056241661,-460.0,0.00019178,2]
[368195900,1751056241673,-460.0,0.00019178,2]
[368195901,1751056241682,-460.0,0.00019178,2]
[368195904,1751056241692,-5321.95,0.00019178,2]
[368195906,1751056241701,-460.0,0.00019178,2]
[368195908,1751056241711,-1799.91,0.00019178,2]
[368195909,1751056241719,-460.0,0.00019178,2]
[368195911,1751056241729,-460.0,0.00019178,2]
[368195914,1751056241738,-460.0,0.00019178,2]
[368195916,1751056241747,-460.0,0.00019178,2]
[368195917,1751056241759,-460.0,0.00019178,2]
[368195919,1751056241768,-460.0,0.00019178,2]
[368195921,1751056241778,-1399.84,0.00019178,2]
[368195923,1751056241787,-166.969606,0.00019178,2]
[368195925,1751056241796,-759.84647968,0.00019352,2]
[368195927,1751056241805,-460.0,0.00019452,2]
[368195930,1751056241814,-460.0,0.00019452,2]
[368195931,1751056241823,-460.0,0.00019452,2]
[368195933,1751056241832,-460.0,0.00019452,2]
[368195935,1751056241841,-466.95855286,0.00019452,2]
[368195937,1751056241850,-294.09410533,0.00019452,2]
[368195939,1751056241859,-460.0,0.00019452,2]
[368195940,1751056241868,-410.74724265,0.00019452,2]
[368195941,1751056241877,-460.0,0.00019452,2]
[368195942,1751056241888,-460.0,0.00019452,2]
[368195943,1751056241897,-460.0,0.00019452,2]
[368195944,1751056241906,-471.98705521,0.00019452,2]
[368195945,1751056241915,-460.0,0.00019452,2]
[368195946,1751056241924,-186.00548971,0.00019452,2]
[368195947,1751056241934,-285.38,0.00019452,2]
[368195948,1751056241943,-460.0,0.00019452,2]
[368195949,1751056241952,-460.0,0.00019452,2]
[368195950,1751056241961,-460.0,0.00019452,2]
[368195951,1751056241970,-460.0,0.00019452,2]
[368195953,1751056241979,-460.0,0.00019452,2]
[368195955,1751056241988,-460.0,0.00019452,2]
[368195957,1751056241998,-460.0,0.00019452,2]
[368195959,1751056242007,-460.0,0.00019452,2]
[368195961,1751056242016,-460.0,0.00019452,2]
[368195963,1751056242025,-460.0,0.00019452,2]
[368195965,1751056242034,-460.0,0.00019452,2]
[368195967,1751056242043,-460.0,0.00019452,2]
[368195969,1751056242052,-460.0,0.00019452,2]
[368195971,1751056242062,-460.0,0.00019452,2]
[368195973,1751056242071,-460.0,0.00019452,2]
[368195975,1751056242080,-460.0,0.00019452,2]
[368195977,1751056242089,-492.76,0.00019452,2]
[368195979,1751056242098,-705.79,0.00019452,2]
[368195981,1751056242108,-460.0,0.00019452,2]
[368195983,1751056242117,-460.0,0.00019452,2]
[368195985,1751056242127,-460.0,0.00019452,2]
[368195987,1751056242137,-460.0,0.00019452,2]
[368195989,1751056242146,-460.0,0.00019452,2]
[368195990,1751056242161,-951.93,0.00019452,2]
[368195992,1751056242171,-460.0,0.00019452,2]
[368195994,1751056242180,-460.0,0.00019452,2]
[368195996,1751056242189,-460.0,0.00019452,2]
[368195999,1751056242198,-460.0,0.00019452,2]
[368196000,1751056242206,-460.0,0.00019452,2]
[368196002,1751056242215,-507.09,0.00019452,2]
[368196004,1751056242225,-460.0,0.00019452,2]
[368196006,1751056242234,-460.0,0.00019452,2]
[368196008,1751056242243,-460.0,0.00019452,2]
[368196010,1751056242253,-460.0,0.00019452,2]
[368196012,1751056242262,-460.0,0.00019452,2]
[368196014,1751056242272,-460.0,0.00019452,2]
[368196016,1751056242282,-460.0,0.00019452,2]
[368196018,1751056242294,-176.50620111,0.00019452,2]
[368196020,1751056242303,-460.0,0.00019452,2]
[368196023,1751056242313,-460.0,0.00019452,2]
[368196025,1751056242322,-460.0,0.00019452,2]
[368196027,1751056242331,-460.0,0.00019452,2]
[368196029,1751056242342,-552.86,0.00019452,2]
[368196031,1751056242351,-460.0,0.00019452,2]
[368196033,1751056242360,-460.0,0.00019452,2]
[368196035,1751056242371,-460.0,0.00019452,2]
[368196037,1751056242380,-460.0,0.00019452,2]
[368196039,1751056242389,-460.0,0.00019452,2]
[368196041,1751056242398,-460.0,0.00019452,2]
[368196043,1751056242407,-460.0,0.00019452,2]
[368196045,1751056242417,-829.18,0.00019452,2]
[368196047,1751056242426,-460.0,0.00019452,2]
[368196049,1751056242435,-460.0,0.00019452,2]
[368196051,1751056242444,-460.0,0.00019452,2]
[368196053,1751056242453,-460.0,0.00019452,2]
[368196054,1751056242462,-460.0,0.00019452,2]
[368196056,1751056242471,-460.0,0.00019452,2]
[368196058,1751056242480,-460.0,0.00019452,2]
[368196060,1751056242490,-460.0,0.00019452,2]
[368196063,1751056242499,-500.0,0.00019452,2]
[368196064,1751056242509,-460.0,0.00019452,2]
[368196066,1751056242518,-460.0,0.00019452,2]
[368196069,1751056242527,-460.0,0.00019452,2]
[368196071,1751056242536,-460.0,0.00019452,2]
[368196072,1751056242546,-460.0,0.00019452,2]
[368196074,1751056242555,-460.0,0.00019452,2]
[368196076,1751056242565,-582.16,0.00019452,2]
[368196078,1751056242574,-460.0,0.00019452,2]
[368196080,1751056242583,-460.0,0.00019452,2]
[368196082,1751056242592,-460.0,0.00019452,2]
[368196084,1751056242601,-465.84,0.00019452,2]
[368196087,1751056242611,-460.0,0.00019452,2]
[368196088,1751056242620,-483.52046176,0.00019452,2]
[368196091,1751056242629,-204.10956673,0.00019452,2]
[368196093,1751056242639,-313.05496491,0.00019452,2]
[368196095,1751056242649,-460.0,0.00019452,2]
[368196097,1751056242658,-460.0,0.00019452,2]
[368196099,1751056242669,-460.0,0.00019452,2]
[368196101,1751056242678,-460.0,0.00019452,2]
[368196103,1751056242688,-464.9,0.00019452,2]
[368196104,1751056242697,-654.5,0.00019452,2]
[368196106,1751056242706,-460.0,0.00019452,2]
[368196108,1751056242716,-460.0,0.00019452,2]
[368196110,1751056242725,-460.0,0.00019452,2]
[368196112,1751056242734,-460.0,0.00019452,2]
[368196115,1751056242744,-460.0,0.00019452,2]
[368196116,1751056242753,-460.0,0.00019452,2]
[368196119,1751056242763,-513.46,0.00019452,2]
[368196120,1751056242772,-460.0,0.00019452,2]
[368196123,1751056242782,-460.0,0.00019452,2]
[368196125,1751056242791,-460.0,0.00019452,2]
[368196127,1751056242800,-618.44,0.00019452,2]
[368196128,1751056242810,-460.0,0.00019452,2]
[368196130,1751056242819,-460.0,0.00019452,2]
[368196132,1751056242828,-460.0,0.00019452,2]
[368196135,1751056242838,-847.69,0.00019452,2]
[368196137,1751056242847,-696.94,0.00019452,2]
[368196138,1751056242857,-460.0,0.00019452,2]
[368196140,1751056242866,-480.02,0.00019452,2]
[368196142,1751056242875,-460.0,0.00019452,2]
[368196144,1751056242885,-548.4,0.00019452,2]
[368196146,1751056242896,-770.99,0.00019452,2]
[368196149,1751056242906,-664.76,0.00019452,2]
[368196150,1751056242915,-1819.87,0.00019452,2]
[368196152,1751056242925,-3421.7,0.00019452,2]
[368196155,1751056242935,-460.0,0.00019452,2]
[368196156,1751056242944,-460.0,0.00019452,2]
[368196158,1751056242953,-692.12,0.00019452,2]
[368196160,1751056242963,-608.13,0.00019452,2]
[368196163,1751056242974,-2991.02,0.00019452,2]
[368196164,1751056242983,-460.0,0.00019452,2]
[368196166,1751056242994,-460.0,0.00019452,2]
[368196168,1751056243003,-1134.48,0.00019452,2]
[368196171,1751056243012,-460.0,0.00019452,2]
[368196174,1751056243022,-460.0,0.00019452,2]
[368196176,1751056243031,-460.0,0.00019452,2]
[368196178,1751056243040,-738.08,0.00019452,2]
[368196179,1751056243050,-460.0,0.00019452,2]
[368196182,1751056243059,-681.69,0.00019452,2]
[368196184,1751056243069,-460.0,0.00019452,2]
[368196185,1751056243078,-604.79,0.00019452,2]
[368196187,1751056243088,-463.6,0.00019452,2]
[368196189,1751056243098,-467.1087756,0.00019452,2]
[368196191,1751056243108,-460.0,0.00019452,2]
[368196194,1751056243117,-460.0,0.00019452,2]
[368196196,1751056243127,-477.92,0.00019452,2]
[368196198,1751056243136,-460.0,0.00019452,2]
[368196199,1751056243146,-460.0,0.00019452,2]
[368196201,1751056243155,-3339.49,0.00019452,2]
[368196203,1751056243166,-460.0,0.00019452,2]
[368196206,1751056243175,-460.0,0.00019452,2]
[368196208,1751056243185,-460.0,0.00019452,2]
[368196210,1751056243194,-1886.24,0.00019452,2]
[368196211,1751056243203,-1021.99,0.00019452,2]
[368196213,1751056243212,-460.0,0.00019452,2]
[368196215,1751056243222,-460.0,0.00019452,2]
[368196218,1751056243231,-460.0,0.00019452,2]
[368196220,1751056243240,-543.97,0.00019452,2]
[368196221,1751056243250,-3167.18,0.00019452,2]
[368196224,1751056243259,-460.0,0.00019452,2]
[368196225,1751056243268,-460.0,0.00019452,2]
[368196228,1751056243278,-460.0,0.00019452,2]
[368196230,1751056243288,-473.57,0.00019452,2]
[368196232,1751056243301,-3702.4,0.00019452,2]
[368196233,1751056243311,-221.492459,0.00019452,10]
[368196235,1751056243320,-460.0,0.00019452,2]
[368196237,1751056243330,-460.0,0.00019452,2]
[368196240,1751056243340,-400.81107327,0.00019452,2]
[368196242,1751056243349,-718.91,0.00019452,2]
[368196244,1751056243358,-460.0,0.00019452,2]
[368196246,1751056243369,-5599.22,0.00019452,2]
[368196248,1751056243379,-460.0,0.00019452,2]
[368196250,1751056243389,-2001.37,0.00019452,2]
[368196251,1751056243400,-460.0,0.00019452,2]
[368196254,1751056243411,-625.25,0.00019452,2]
[368196255,1751056243421,-460.0,0.00019452,2]
[368196258,1751056243430,-577.2,0.00019452,2]
[368196260,1751056243440,-460.0,0.00019452,2]
[368196261,1751056243449,-460.0,0.00019452,2]
[368196263,1751056243458,-460.0,0.00019452,2]
[368196265,1751056243467,-1291.28,0.00019452,2]
[368196267,1751056243476,-460.0,0.00019452,2]
[368196269,1751056243485,-460.0,0.00019452,2]
[368196272,1751056243495,-460.0,0.00019452,2]
[368196274,1751056243504,-683.72,0.00019452,2]
[368196276,1751056243514,-1356.42,0.00019452,2]
[368196278,1751056243523,-460.0,0.00019452,2]
[368196280,1751056243532,-466.04038723,0.00019452,2]
[368196282,1751056243541,-201.9535255,0.00019452,2]
[368196284,1751056243551,-1574.84,0.00019452,2]
[368196285,1751056243560,-4877.3,0.00019452,2]
[368196288,1751056243569,-1167.56,0.00019452,2]
[368196306,1751056243722,-460.0,0.00019452,2]
[368196308,1751056243731,-460.0,0.00019452,2]
[368196310,1751056243742,-460.0,0.00019452,2]
[368196312,1751056243752,-2104.86,0.00019452,2]
[368196314,1751056243761,-824.77,0.00019452,2]
[368196316,1751056243771,-592.19836105,0.00019452,2]
[368196318,1751056243781,-460.0,0.00019452,2]
[368196320,1751056243790,-663.68,0.00019452,2]
[368196322,1751056243799,-460.0,0.00019452,2]
[368196324,1751056243808,-460.0,0.00019452,2]
[368196326,1751056243818,-733.53,0.00019452,2]
[368196328,1751056243827,-460.0,0.00019452,2]
[368196330,1751056243837,-460.0,0.00019452,2]
[368196332,1751056243846,-543.23,0.00019452,2]
[368196334,1751056243856,-1619.82,0.00019452,2]
[368196336,1751056243865,-460.0,0.00019452,2]
[368196338,1751056243874,-460.0,0.00019452,2]
[368196340,1751056243885,-561.13682606,0.00019452,2]
[368196343,1751056243895,-766.76,0.00019452,2]
[368196345,1751056243905,-658.12,0.00019452,2]
[368196347,1751056243914,-460.0,0.00019452,2]
[368196348,1751056243924,-460.0,0.00019452,2]
[368196350,1751056243933,-549.15508703,0.00019452,2]
[368196352,1751056243942,-460.0,0.00019452,2]
[368196354,1751056243951,-3888.25,0.00019452,2]
[368196356,1751056243961,-460.0,0.00019452,2]
[368196358,1751056243970,-460.0,0.00019452,2]
[368196361,1751056243980,-754.93,0.00019452,2]
[368196363,1751056243990,-460.0,0.00019452,2]
[368196364,1751056243999,-460.0,0.00019452,2]
[368196366,1751056244010,-546.29,0.00019452,2]
[368196368,1751056244019,-395.65289753,0.00019452,2]
[368196370,1751056244029,-500.0,0.00019452,2]
[368196373,1751056244039,-460.0,0.00019452,2]
[368196374,1751056244048,-460.0,0.00019452,2]
[368196376,1751056244057,-777.59,0.00019452,2]
[368196377,1751056244067,-460.0,0.00019452,2]
[368196378,1751056244076,-460.0,0.00019452,2]